bitfinex/quotes_ETHUSD_20210401
["timestamp","ask_amount","ask_price","bid_price","bid_amount"]
[1617300379005,7.74667,1935.6,1935.5,0.4]
[1617300379404,7.74667,1935.6,1935.3,5.01]
[1617300379609,7.74667,1935.6,1935.1,5.4201]
[1617300379803,7.74667,1935.6,1935.2,5.42]
[1617300380003,7.74667,1935.6,1935.3,5.01]
[1617300380403,7.74667,1935.6,1935.2,5.42]
[1617300380805,7.74667,1935.6,1935.4,0.4]
[1617300381408,7.74667,1935.6,1935.1,5.2901]
[1617300382209,1.2,1935.5,1935.1,0.0001]
[1617300383623,2.7,1935.2,1935.1,0.0001]
[1617300383824,15.55,1935.2,1935.1,0.0001]
[1617300384833,20.59953,1935.2,1935.1,0.0001]
[1617300385022,21.81202878,1935.2,1935.1,0.0001]
[1617300386049,22.8387748,1935.2,1935.1,0.0001]
[1617300386250,21.81202878,1935.2,1935.1,0.0001]
[1617300387050,20.59953,1935.2,1935.1,0.0001]
[1617300388251,21.81202878,1935.2,1935.1,0.0001]
[1617300388679,10.16202878,1935.2,1935.1,0.0001]
[1617300389078,1.21249878,1935.2,1935.1,1.72011901]
[1617300389277,1.2,1936.0,1935.1,10.40462199]
[1617300389477,1.2,1936.0,1935.4,0.308]
[1617300389677,1.2,1936.0,1935.4,7.3317]
[1617300389678,7.74612,1935.7,1935.4,7.3317]
[1617300390477,7.74612,1935.7,1935.6,12.36]
[1617300390679,7.74612,1935.7,1935.6,12.74]
[1617300391495,7.74612,1935.7,1935.6,5.39]
[1617300391897,7.74612,1935.7,1935.6,0.38]
[1617300392496,7.74612,1935.7,1935.6,5.01]
[1617300392701,7.74612,1935.7,1935.4,0.308]
[1617300392898,7.74612,1935.7,1935.5,5.41]
[1617300393297,7.74612,1935.7,1935.6,5.01]
[1617300394360,8.94612,1935.7,1935.5,5.0]
[1617300394556,24.3,1935.6,1935.1,5.0101]
[1617300394756,24.3,1935.6,1935.1,0.0001]
[1617300394957,3.7,1935.5,1935.1,0.0001]
[1617300395156,4.9,1935.5,1935.1,0.0001]
[1617300395360,7.74918,1935.3,1935.1,0.0001]
[1617300396558,18.7,1935.2,1935.1,0.0001]
[1617300396756,26.44974,1935.2,1935.1,0.0001]
[1617300397156,26.39974,1935.2,1935.1,0.0001]
[1617300397961,7.74974,1935.2,1935.1,0.0001]
[1617300398760,8.94974,1935.2,1935.1,0.0001]
[1617300400381,7.74974,1935.2,1935.1,0.0001]
[1617300400980,8.94974,1935.2,1935.1,0.0001]
[1617300404230,8.94974,1935.2,1935.1,0.3901]
[1617300404231,7.74974,1935.2,1935.1,0.3901]
[1617300404632,7.74974,1935.2,1935.1,0.0001]
[1617300405837,8.94974,1935.2,1935.1,0.0001]
[1617300406031,7.74974,1935.2,1935.1,0.0001]
[1617300406535,7.74974,1935.2,1935.1,0.1004]
[1617300406738,7.74974,1935.2,1935.1,5.4]
[1617300406983,1.21249878,1935.4,1935.1,5.4]
[1617300407383,1.21249878,1935.4,1935.3,5.01]
[1617300407384,8.95980878,1935.4,1935.3,5.01]
[1617300407783,8.95980878,1935.4,1935.2,5.01]
[1617300407983,7.74731,1935.4,1935.2,5.01]
[1617300408583,7.74731,1935.4,1935.3,0.41]
[1617300408786,7.74682,1935.5,1935.3,8.73]
[1617300408984,7.74682,1935.5,1935.4,0.4]
[1617300409182,7.74682,1935.5,1935.4,5.41]
[1617300409383,7.74682,1935.5,1935.4,5.01]
[1617300410186,2.7,1935.4,1935.2,5.29]
[1617300410393,2.7,1935.4,1935.2,5.01]
[1617300410786,2.7,1935.4,1935.1,0.41]
[1617300411186,10.33086,1935.4,1935.0,0.28]
[1617300411388,10.33086,1935.4,1935.2,5.01]
[1617300411587,10.33086,1935.4,1935.0,0.28]
[1617300412597,11.53086,1935.4,1935.0,0.28]
[1617300412798,10.33086,1935.4,1935.1,0.39]
[1617300412998,10.33086,1935.4,1935.2,0.41]
[1617300413199,10.33086,1935.4,1935.2,5.42]
[1617300413399,13.8,1935.3,1934.9,5.01]
[1617300413607,13.8,1935.3,1934.5,4.9285107]
[1617300413608,1.2,1935.1,1934.5,4.9285107]
[1617300413800,1.2,1935.1,1934.6,5.0]
[1617300414200,7.7493,1934.9,1934.5,4.9285107]
[1617300414401,7.7493,1934.9,1934.5,4.83444176]
[1617300414830,7.7493,1934.9,1934.6,7.0]
[1617300415429,7.7493,1934.9,1934.5,4.83444176]
[1617300415632,7.7493,1934.9,1934.7,0.39]
[1617300416233,7.7493,1934.9,1934.7,5.4]
[1617300416431,7.7493,1934.9,1934.8,7.85]
[1617300416632,7.7493,1934.9,1934.8,0.4]
[1617300417454,7.7493,1934.9,1934.7,5.42]
[1617300417856,12.60846484,1934.9,1934.5,4.83441347]
[1617300418056,12.60846484,1934.9,1934.5,0.790286]
[1617300418255,14.67583874,1934.9,1934.5,0.790286]
[1617300418454,1.2,1934.7,1934.5,0.790286]
[1617300418655,29.70916484,1934.6,1934.5,0.790286]
[1617300419253,29.70916484,1934.6,1934.1,1.0]
[1617300419254,27.45,1934.5,1934.1,1.0]
[1617300419456,0.41,1934.3,1934.1,1.0]
[1617300419655,0.4,1934.3,1934.1,0.95]
[1617300420282,1.34,1934.4,1934.1,0.95]
[1617300420481,4.3,1934.3,1934.1,0.95]
[1617300420690,9.3,1934.2,1934.1,0.95]
[1617300421090,21.75,1934.2,1934.1,0.95]
[1617300422092,29.05,1934.2,1934.1,0.95]
[1617300422293,29.97783,1934.1,1933.5,1.04344229]
[1617300422493,29.97783,1934.1,1933.4,0.68]
[1617300422494,1.2,1934.0,1933.4,0.68]
[1617300422732,0.308,1933.9,1933.1,0.0301]
[1617300422928,1.61,1933.5,1932.9,8.09371224]
[1617300423129,1.61,1933.5,1932.7,1.12631912]
[1617300423130,0.322,1933.3,1932.7,1.12631912]
[1617300423327,4.522,1933.3,1932.7,1.12631912]
[1617300423527,4.522,1933.3,1932.1,0.8658358]
[1617300423528,0.4,1932.8,1932.1,0.8658358]
[1617300423728,3.88028,1932.7,1932.1,1.0058358]
[1617300423927,7.76142,1932.4,1932.1,0.91176686]
[1617300424328,7.76142,1932.4,1932.1,0.77176686]
[1617300424724,0.39,1932.3,1932.1,0.77176686]
[1617300424927,0.4,1932.5,1932.1,0.77176686]
[1617300425328,1.6,1932.5,1932.1,0.77176686]
[1617300425929,7.76136,1932.2,1932.1,0.77176686]
[1617300426734,15.1,1932.1,1932.0,5.78897957]
[1617300427134,16.68,1932.1,1932.0,5.78897957]
[1617300427334,24.5623,1932.1,1932.0,5.78897957]
[1617300427956,24.5623,1932.1,1931.6,2.0855034]
[1617300427957,24.5623,1932.1,1931.6,1.297e-05]
[1617300428171,0.4,1931.7,1931.6,1.297e-05]
[1617300428359,14.91864832,1931.7,1931.6,1.297e-05]
[1617300428759,14.88864832,1931.7,1931.3,0.09406894]
[1617300428960,18.99,1931.4,1931.3,0.09406894]
[1617300429159,20.19,1931.4,1931.3,0.09406894]
[1617300429758,18.99,1931.4,1931.3,0.09406894]
[1617300429961,18.6,1931.4,1931.3,0.09406894]
[1617300430158,19.8,1931.4,1931.3,0.09406894]
[1617300430358,8.15586,1931.5,1931.3,0.09406894]
[1617300430591,7.76586,1931.5,1931.3,0.09406894]
[1617300430892,10.35448,1931.6,1931.3,0.09406894]
[1617300431089,0.41,1932.0,1931.5,0.14]
[1617300431291,0.41,1932.0,1931.3,0.09406894]
[1617300431292,0.67,1932.0,1931.3,0.09406894]
[1617300431494,1.2,1931.8,1931.3,0.09406894]
[1617300431691,27.85,1931.4,1931.3,0.09406894]
[1617300431893,27.85,1931.4,1931.1,1.0]
[1617300432091,23.4,1931.2,1931.1,1.0]
[1617300432492,0.4,1931.2,1931.1,1.0]
[1617300432692,1.2,1931.5,1931.1,1.0]
[1617300432893,15.76647,1931.2,1931.1,1.0]
[1617300433111,7.76647,1931.2,1931.1,1.0]
[1617300433311,10.35525,1931.5,1931.1,1.0]
[1617300433913,3.2,1931.4,1931.1,1.0]
[1617300434312,11.55525,1931.5,1931.1,1.0]
[1617300434516,3.38,1931.4,1931.1,0.95]
[1617300434713,3.77,1931.4,1931.1,0.95]
[1617300434912,11.53386,1931.4,1931.1,0.95]
[1617300435112,11.14386,1931.4,1931.1,0.95]
[1617300435312,0.69,1931.6,1931.1,0.95]
[1617300435933,14.9357,1932.3,1931.2,0.41]
[1617300436133,21.2271,1932.4,1931.6,19.95]
[1617300436334,12.93917,1932.5,1931.8,5.01]
[1617300436534,14.9656,1932.8,1931.8,5.01]
[1617300436535,14.9656,1932.8,1931.9,3.66124832]
[1617300436733,3.88,1932.4,1931.9,3.70531726]
[1617300436932,0.41,1932.7,1932.1,5.41]
[1617300437141,0.39,1932.2,1932.0,1.96682059]
[1617300437333,0.39,1932.2,1931.8,5.01]
[1617300437732,0.39,1932.2,1931.7,0.14]
[1617300437932,0.39,1932.2,1931.2,0.09406894]
[1617300438135,7.76282,1931.7,1931.3,0.53]
[1617300438356,7.71282,1931.7,1931.5,0.4]
[1617300438955,7.71282,1931.7,1931.3,0.14]
[1617300439154,7.71282,1931.7,1931.4,0.41]
[1617300439356,7.71282,1931.7,1931.3,0.14]
[1617300439758,7.71282,1931.7,1931.4,5.01]
[1617300439956,7.71282,1931.7,1931.5,0.39]
[1617300440158,10.34976,1932.1,1931.5,0.39]
[1617300440356,0.41,1932.2,1931.7,0.4]
[1617300440558,17.3713,1932.9,1932.0,0.39]
[1617300440759,12.9358,1933.0,1932.0,0.39]
[1617300440987,5.36,1932.5,1932.1,3.67334362]
[1617300441184,12.9358,1933.0,1932.6,0.39]
[1617300441185,7.75815,1932.8,1932.6,0.39]
[1617300441384,7.75815,1932.8,1932.3,5.15]
[1617300441582,7.75815,1932.8,1932.3,0.14]
[1617300441782,7.75815,1932.8,1932.5,5.01]
[1617300441981,7.75815,1932.8,1932.5,0.25]
[1617300442182,7.75815,1932.8,1932.3,5.53]
[1617300442982,7.75815,1932.8,1932.5,0.38]
[1617300443183,0.38,1933.1,1932.5,5.09325087]
[1617300443383,1.0,1933.9,1932.7,0.39]
[1617300443384,0.39,1933.3,1932.7,0.39]
[1617300443612,1.0,1933.9,1932.7,0.39]
[1617300443613,1.0,1933.9,1932.7,9.07334362]
[1617300443813,1.0,1933.9,1932.9,5.01]
[1617300444011,13.22592,1933.6,1932.9,5.15]
[1617300444211,0.39,1933.3,1932.9,5.15]
[1617300444411,0.39,1933.3,1932.9,0.14]
[1617300444610,0.39,1933.3,1932.9,5.15]
[1617300445213,7.75675,1933.2,1932.9,5.15]
[1617300445413,7.75675,1933.2,1932.7,0.39]
[1617300445615,7.75675,1933.2,1932.6,8.68334362]
[1617300445616,13.32192,1933.6,1933.0,0.4]
[1617300445817,12.93192,1933.6,1933.1,0.41]
[1617300446233,0.4,1933.5,1932.9,5.01]
[1617300446433,0.4,1933.5,1932.8,5.15]
[1617300446633,12.93192,1933.6,1932.8,0.14]
[1617300446834,13.32192,1933.6,1933.1,0.39]
[1617300447034,12.93192,1933.6,1933.2,0.39]
[1617300447238,7.75431,1933.8,1933.2,0.39]
[1617300447436,7.75431,1933.8,1933.3,8.68334362]
[1617300447640,7.75431,1933.8,1933.5,5.01]
[1617300447838,0.41,1933.6,1933.2,5.01]
[1617300448035,0.41,1933.6,1933.1,5.01]
[1617300448237,2.0,1933.5,1933.1,5.01]
[1617300448439,0.38,1933.4,1933.0,0.14]
[1617300448638,2.4,1933.3,1932.8,5.4]
[1617300448859,2.4,1933.3,1932.6,5.01]
[1617300448860,0.38,1933.2,1932.6,5.01]
[1617300449059,2.0,1933.1,1932.6,0.53]
[1617300449457,2.0,1933.1,1932.8,0.38]
[1617300449659,10.34394,1933.0,1932.8,0.38]
[1617300449859,12.34394,1933.0,1932.6,0.54]
[1617300450057,12.34394,1933.0,1932.6,0.14]
[1617300450458,0.39,1932.7,1932.3,5.01]
[1617300450660,1.48676235,1932.6,1932.3,5.01]
[1617300450860,7.7597,1932.5,1932.4,0.4]
[1617300451062,9.24646235,1932.5,1932.4,0.4]
[1617300451684,1.48676235,1932.5,1932.4,14.75891296]
[1617300451883,1.48676235,1932.5,1932.4,11.1]
[1617300452484,1.48676235,1932.5,1932.4,19.1]
[1617300452691,14.52283,1933.2,1932.4,19.1]
[1617300452692,1.48676235,1932.6,1932.4,8.14]
[1617300452893,15.38676235,1932.5,1932.4,5.01]
[1617300453088,1.48676235,1932.5,1932.4,5.01]
[1617300453290,1.48676235,1932.5,1932.2,0.09406894]
[1617300453291,7.75992,1932.4,1932.2,0.09406894]
[1617300453485,1.48676235,1932.3,1932.2,5.10406894]
[1617300454306,1.48676235,1932.3,1932.2,5.01]
[1617300454509,1.48676235,1932.3,1932.2,13.01]
[1617300454705,1.48676235,1932.3,1932.2,5.01]
[1617300455304,1.48676235,1932.3,1932.1,5.42]
[1617300456108,10.34656,1932.5,1932.3,27.4]
[1617300456309,0.4,1933.5,1932.4,3.79549454]
[1617300456509,12.93048,1933.7,1932.5,3.87832]
[1617300456732,0.39,1933.6,1932.6,3.78602718]
[1617300456934,15.93048,1933.7,1932.8,0.14]
[1617300457138,22.3,1933.6,1932.9,0.14]
[1617300457333,22.3,1933.6,1932.7,5.01]
[1617300457334,14.95,1933.4,1932.7,5.01]
[1617300457534,0.48406894,1933.3,1932.8,5.54]
[1617300457735,0.39,1933.3,1932.8,5.54]
[1617300457936,18.29,1933.4,1932.8,5.54]
[1617300457937,3.34,1933.4,1932.8,5.54]
[1617300458144,8.1649,1933.5,1932.9,4.09031556]
[1617300458332,8.1649,1933.5,1933.1,5.01]
[1617300458734,7.7549,1933.5,1932.9,5.42]
[1617300458934,7.7549,1933.5,1933.1,5.01]
[1617300459134,7.1416,1933.5,1933.2,0.41]
[1617300459358,7.1416,1933.5,1933.3,0.1387179]
[1617300460558,7.1416,1933.5,1933.3,5.01]
[1617300460962,4.0680776,1933.4,1932.3,0.53964262]
[1617300461161,1.2,1933.3,1932.3,0.53964262]
[1617300461361,0.39,1932.9,1932.4,0.39]
[1617300461561,0.357,1933.1,1932.5,0.37860723]
[1617300461760,0.39,1933.0,1932.5,4.25722723]
[1617300461983,0.09406894,1933.3,1932.5,4.25722723]
[1617300462183,0.09406894,1933.3,1932.5,6.37971347]
[1617300462384,0.09406894,1933.4,1932.6,0.091]
[1617300462584,0.09406894,1933.4,1933.2,0.41]
[1617300462785,10.3424,1933.6,1933.2,0.41]
[1617300462786,0.09406894,1933.5,1933.2,0.41]
[1617300462986,7.754,1933.7,1933.2,4.27906]
[1617300463186,7.754,1933.7,1933.4,5.01]
[1617300463784,7.754,1933.7,1933.5,0.4]
[1617300463985,1.0,1933.9,1933.5,0.4]
[1617300464185,0.7667,1933.9,1933.4,5.01]
[1617300464385,8.14014,1933.9,1933.4,5.20357506]
[1617300464613,8.14014,1933.9,1933.4,10.95966806]
[1617300464809,8.14014,1933.9,1933.4,3.95966806]
[1617300465009,8.14014,1933.9,1933.4,15.83649806]
[1617300465414,0.3867,1933.9,1933.6,0.41]
[1617300465825,0.3867,1933.9,1933.4,16.10803206]
[1617300466028,0.4,1933.8,1933.4,16.10803206]
[1617300466226,0.4,1933.8,1933.4,8.10803206]
[1617300466833,0.3867,1933.9,1933.4,16.10803206]
[1617300467027,0.39,1933.8,1933.4,4.23120206]
[1617300467231,7.75388,1933.7,1933.4,0.46510906]
[1617300467431,7.75388,1933.7,1933.6,5.01]
[1617300467629,7.75388,1933.7,1933.4,0.46510906]
[1617300467834,7.75388,1933.7,1933.4,5.47510906]
[1617300468033,7.75388,1933.7,1933.5,5.01]
[1617300468232,7.75388,1933.7,1933.4,0.271534]
[1617300468233,8.95388,1933.7,1933.4,0.271534]
[1617300468433,27.81,1933.5,1933.4,0.271534]
[1617300468636,29.01,1933.5,1933.4,0.271534]
[1617300469231,28.7767,1933.5,1933.4,0.271534]
[1617300470258,36.53349,1933.5,1933.4,0.271534]
[1617300470855,8.95679,1933.5,1933.4,0.271534]
[1617300471860,12.59274978,1933.5,1933.4,0.271534]
[1617300472258,12.98274978,1933.5,1933.4,0.271534]
[1617300472485,36.18274978,1933.5,1933.4,0.271534]
[1617300472686,27.4,1933.4,1932.8,0.10459228]
[1617300472884,1.2,1933.3,1932.8,0.10459228]
[1617300473084,0.41,1933.1,1932.8,0.10459228]
[1617300473889,0.41,1933.1,1932.8,0.48459228]
[1617300473890,7.75861,1933.1,1932.8,0.48459228]
[1617300474085,7.14531,1933.1,1932.8,0.48459228]
[1617300474285,10.34482,1933.2,1933.0,10.44]
[1617300474484,1.2,1933.5,1933.0,10.44]
[1617300474686,1.2,1933.5,1933.2,3.87762]
[1617300474884,7.75523,1933.3,1933.2,3.87762]
[1617300475108,7.75523,1933.3,1933.0,5.01]
[1617300475312,7.75523,1933.3,1932.9,5.01]
[1617300475510,7.75523,1933.3,1932.8,0.50459228]
[1617300475708,7.75523,1933.3,1932.8,5.51459228]
[1617300475908,7.75523,1933.3,1932.8,5.36459228]
[1617300476309,7.75523,1933.3,1933.0,3.87812]
[1617300477509,7.75631,1933.2,1933.0,3.87812]
[1617300477738,8.15631,1933.2,1933.0,3.87812]
[1617300477939,2.94,1933.1,1933.0,3.87812]
[1617300478740,7.75631,1933.2,1933.0,3.87812]
[1617300478940,2.76,1933.1,1933.0,3.87812]
[1617300479146,2.76,1933.1,1932.8,5.01]
[1617300479147,2.1467,1933.1,1932.8,5.01]
[1617300479343,2.1467,1933.1,1932.7,0.38]
[1617300479344,3.3467,1933.1,1932.7,0.38]
[1617300479542,3.3467,1933.1,1932.6,0.14]
[1617300479742,3.3467,1933.1,1932.7,0.4]
[1617300479943,3.3467,1933.1,1932.5,0.76860723]
[1617300480142,0.09406894,1933.0,1932.5,0.76860723]
[1617300480363,7.7587,1932.8,1932.5,0.76860723]
[1617300480566,7.7587,1932.8,1932.7,6.19]
[1617300480764,7.73612,1932.8,1932.7,14.04]
[1617300480962,7.73612,1932.8,1932.7,6.19]
[1617300481366,7.73612,1932.8,1932.7,0.39]
[1617300481562,7.73612,1932.8,1932.6,4.89731]
[1617300481769,7.73612,1932.8,1932.6,0.39]
[1617300481770,7.70224,1932.8,1932.6,0.39]
[1617300481964,7.70224,1932.8,1932.6,4.26851]
[1617300482363,7.66836,1932.8,1932.7,0.39]
[1617300482994,7.66836,1932.8,1932.7,7.0]
[1617300483595,7.66836,1932.8,1932.6,4.07323]
[1617300483993,7.32496,1932.8,1932.6,4.07323]
[1617300484193,6.71166,1932.8,1932.6,4.03839]
[1617300484592,6.6963,1932.8,1932.6,3.63671]
[1617300484793,6.6963,1932.8,1932.6,4.00123]
[1617300484992,6.6963,1932.8,1932.6,3.60123]
[1617300485814,6.6963,1932.8,1932.5,0.23145723]
[1617300486209,6.6963,1932.8,1932.5,0.19418723]
[1617300486410,6.66242,1932.8,1932.5,0.19418723]
[1617300487211,7.05242,1932.8,1932.5,0.08614723]
[1617300487413,7.71335,1932.8,1932.5,0.08614723]
[1617300487615,17.0,1932.6,1932.5,0.08614723]
[1617300487818,17.41,1932.6,1932.5,0.08614723]
[1617300488018,29.00322,1932.6,1932.5,0.04406723]
[1617300488240,25.75,1932.5,1932.0,0.26968234]
[1617300488441,25.75,1932.5,1931.8,0.41]
[1617300488442,1.47322,1932.3,1931.8,0.41]
[1617300488641,1.47322,1932.3,1931.5,0.53985017]
[1617300488840,1.47322,1932.3,1931.8,0.4]
[1617300489043,1.39869,1932.3,1931.9,0.4]
[1617300489239,0.78539,1932.3,1931.9,0.31951]
[1617300489439,0.09406894,1932.4,1931.9,0.31951]
[1617300490040,0.09406894,1932.4,1931.8,0.07]
[1617300490041,3.86,1932.3,1931.8,0.07]
[1617300490241,7.76039,1932.1,1931.8,0.39]
[1617300490440,7.76039,1932.1,1931.9,4.50519]
[1617300490868,7.76039,1932.1,1931.9,4.39002]
[1617300491870,0.39,1932.0,1931.7,3.76974]
[1617300492070,0.39,1932.0,1931.7,3.75211]
[1617300492471,0.39,1932.0,1931.7,8.76211]
[1617300492671,10.34832,1932.3,1931.7,8.76211]
[1617300492871,10.73832,1932.3,1931.9,5.01]
[1617300493071,0.26515654,1932.1,1931.9,5.01]
[1617300493271,0.66515654,1932.1,1931.7,8.76211]
[1617300493485,0.66515654,1932.1,1931.7,3.75211]
[1617300493686,0.66515654,1932.1,1931.9,5.01]
[1617300493885,0.26515654,1932.1,1931.9,5.01]
[1617300494286,9.73485,1932.0,1931.9,5.41]
[1617300494686,9.73485,1932.0,1931.9,5.01]
[1617300494890,9.73485,1932.0,1931.6,0.11966287]
[1617300495087,9.73485,1932.0,1931.7,0.4]
[1617300497115,9.73485,1932.0,1931.6,0.11966287]
[1617300497316,9.73485,1932.0,1931.6,5.51966287]
[1617300497717,9.73485,1932.0,1931.6,0.50966287]
[1617300498118,10.14485,1932.0,1931.6,0.11966287]
[1617300498520,0.26521392,1931.9,1931.6,0.11966287]
[1617300499133,0.85191392,1931.9,1931.6,0.11966287]
[1617300499332,0.85191392,1931.9,1931.6,0.50966287]
[1617300499534,8.61389392,1931.8,1931.6,0.11966287]
[1617300499734,2.84,1931.7,1931.6,0.11966287]
[1617300499933,10.54,1931.7,1931.6,0.06966287]
[1617300500336,2.84,1931.7,1931.3,7.0]
[1617300500534,2.84,1931.7,1931.4,0.38]
[1617300500735,10.60288,1931.7,1931.4,0.38]
[1617300501567,10.60288,1931.7,1931.3,7.38]
[1617300501966,10.98288,1931.7,1931.3,6.95]
[1617300502364,10.60288,1931.7,1931.3,6.95]
[1617300502771,10.60288,1931.7,1931.3,14.95]
[1617300502965,7.76288,1931.7,1931.3,6.95]
[1617300503166,7.76288,1931.7,1931.3,17.79]
[1617300503367,7.76288,1931.7,1931.3,14.95]
[1617300503566,7.76288,1931.7,1931.3,6.95]
[1617300503981,7.76288,1931.7,1931.4,0.41]
[1617300504181,7.31381861,1931.7,1931.4,0.41]
[1617300504585,7.31381861,1931.7,1931.6,0.4]
[1617300505585,7.31381861,1931.7,1931.4,0.16547264]
[1617300505586,7.70381861,1931.7,1931.4,0.16547264]
[1617300506184,7.70381861,1931.7,1931.3,5.01]
[1617300506615,7.31381861,1931.7,1931.3,5.42]
[1617300506813,0.41,1931.6,1931.3,5.01]
[1617300507213,0.16423861,1931.7,1931.3,5.01]
[1617300507613,7.76266,1931.5,1931.3,5.01]
[1617300508017,2.7,1931.4,1931.3,5.01]
[1617300508415,10.4,1931.4,1931.3,4.91]
[1617300509237,10.4,1931.4,1931.2,4.59038638]
[1617300509238,26.8138,1931.4,1931.2,0.53976801]
[1617300509438,4.41,1931.3,1931.1,0.95]
[1617300509637,10.78,1931.2,1931.1,0.95]
[1617300510037,4.08,1931.2,1931.1,0.95]
[1617300510237,0.39,1931.3,1931.1,0.95]
[1617300510641,24.76496,1931.2,1931.1,0.95]
[1617300511039,24.36496,1931.2,1931.1,0.95]
[1617300511237,7.76496,1931.2,1931.1,0.95]
[1617300512480,8.14496,1931.2,1931.1,0.95]
[1617300513081,7.76496,1931.2,1931.1,7.8]
[1617300513485,7.76496,1931.2,1931.1,8.2]
[1617300514083,0.16425137,1931.4,1931.1,14.7]
[1617300514284,7.92657137,1931.4,1931.3,5.01]
[1617300514685,7.92657137,1931.4,1931.1,5.96]
[1617300514885,7.92657137,1931.4,1931.1,0.95]
[1617300515083,7.92657137,1931.4,1931.1,1.34]
[1617300515283,7.92657137,1931.4,1931.1,6.35]
[1617300515486,7.92657137,1931.4,1931.1,1.34]
[1617300516084,7.92657137,1931.4,1931.3,0.39]
[1617300516486,7.92657137,1931.4,1931.1,4.8315]
[1617300516683,7.92657137,1931.4,1931.1,5.2215]
[1617300516885,2.74,1931.3,1931.1,5.2215]
[1617300517108,2.74,1931.3,1931.1,4.8315]
[1617300517310,0.16425137,1931.4,1931.1,4.8315]
[1617300517510,0.16425137,1931.4,1931.2,0.39]
[1617300518111,7.76337,1931.3,1931.1,4.8315]
[1617300518313,7.76337,1931.3,1931.2,5.01]
[1617300518713,7.76337,1931.3,1931.1,4.8315]
[1617300519511,7.76337,1931.3,1931.1,5.2315]
[1617300519733,7.76337,1931.3,1931.2,10.95]
[1617300520936,6.90533961,1931.3,1931.2,18.15295057]
[1617300521140,6.90533961,1931.3,1931.2,15.69295057]
[1617300521337,6.90533961,1931.3,1931.2,14.39]
[1617300522960,0.16425137,1931.4,1931.2,39.24]
[1617300523163,7.76176,1931.5,1931.3,32.41]
[1617300523362,12.94112,1931.8,1931.3,40.26038869]
[1617300523561,12.94112,1931.8,1931.3,41.58630868]
[1617300523766,12.94112,1931.8,1931.4,3.48518224]
[1617300523965,12.66656,1932.5,1931.7,27.79]
[1617300524167,12.66656,1932.5,1932.3,0.4]
[1617300524366,14.62766894,1932.9,1931.8,4.94740417]
[1617300524564,5.38,1932.8,1932.3,0.53]
[1617300524767,4.18,1932.8,1932.3,0.14]
[1617300524994,4.18,1932.8,1932.6,0.39]
[1617300525198,13.7026,1933.5,1932.6,0.39]
[1617300525199,0.09406894,1933.4,1932.7,7.530587]
[1617300525395,14.1026,1933.5,1932.7,7.930587]
[1617300525396,7.75448,1933.5,1932.7,7.930587]
[1617300525594,7.75448,1933.5,1932.7,17.19558057]
[1617300525794,8.43848,1933.5,1932.9,5.01]
[1617300526193,0.4,1933.2,1932.9,5.01]
[1617300526592,0.39,1933.1,1932.9,5.01]
[1617300527194,7.757,1933.1,1932.9,5.01]
[1617300527394,2.76,1933.0,1932.7,3.87813]
[1617300527831,2.76,1933.0,1932.5,0.4]
[1617300528031,2.76,1933.0,1932.6,0.41]
[1617300528231,2.76,1933.0,1932.6,3.8804901]
[1617300528431,10.75267,1933.2,1932.6,1.82679381]
[1617300528632,11.06067,1933.2,1932.6,0.41]
[1617300528832,11.06067,1933.2,1932.4,0.14]
[1617300528833,0.47406894,1933.1,1932.4,0.14]
[1617300529040,7.75776,1932.8,1932.5,0.4]
[1617300529239,3.8704901,1932.7,1931.9,5.56224]
[1617300529436,3.8704901,1932.7,1931.5,0.41]
[1617300529437,5.0704901,1932.7,1931.5,0.41]
[1617300529638,0.42,1932.2,1931.5,0.41]
[1617300530037,7.76188,1931.9,1931.5,0.41]
[1617300530239,9.24188,1931.9,1931.6,0.17014658]
[1617300530440,1.2,1931.7,1931.6,0.17014658]
[1617300530643,1.2,1931.7,1931.1,66.18540507]
[1617300530644,35.02406184,1931.7,1931.1,66.18540507]
[1617300530841,37.84406184,1931.7,1931.1,66.18540507]
[1617300531039,0.38,1931.5,1931.1,66.18540507]
[1617300531240,8.9651,1931.4,1931.1,66.18540507]
[1617300531439,12.40771393,1931.4,1931.1,66.18540507]
[1617300532039,12.40771393,1931.4,1931.1,0.95]
[1617300532239,0.39,1931.3,1931.1,0.95]
[1617300532638,20.4158,1931.2,1931.1,0.95]
[1617300532867,8.9658,1931.2,1931.1,0.95]
[1617300533867,18.2658,1931.2,1931.1,0.95]
[1617300534468,18.6558,1931.2,1931.1,0.95]
[1617300536894,23.9558,1931.2,1931.1,0.95]
[1617300537092,23.9558,1931.2,1930.6,5.05158782]
[1617300537093,1.2,1931.0,1930.6,5.05158782]
[1617300537295,27.78,1930.7,1930.6,1.0]
[1617300537693,28.98,1930.7,1930.6,0.0001]
[1617300538715,36.74875,1930.7,1930.6,0.0001]
[1617300543144,36.74875,1930.7,1930.1,0.0001]
[1617300543145,27.86506894,1930.6,1930.1,0.0001]
[1617300543366,27.8,1930.2,1930.1,0.0001]
[1617300543562,29.0,1930.2,1930.1,0.0001]